Cogmind - Beta 16.1 @@@ ROGUE MODE // 2026.04.08 @ 11:22:44 Player: SunShine214 Result: Destroyed by X-77 Beamer with Gatling Laser Performance ------------- Evolutions (7) 3500 Regions Visited (7) 1400 Robots Destroyed (59) 295 Value Destroyed (2750) 2750 Prototype IDs (21) 420 Alien Tech Used (0) 0 Bonus (1542) 1542 TOTAL SCORE: 9907 Bonus ------- Follower Combat Kills 1042 Entered DSFs 500 Cogmind --------- Core Integrity 0/1300 Matter 280/300 Energy 221/450 System Corruption 32% Temperature Cool (19) Movement Hovering (300) Ox4 Location -3/Research Parts ------- > --- POWER (2) -------- (None) > --- PROPULSION (5) --- Improved Antigrav System > --- UTILITY (8) ------ High-capacity Storage Unit Energy Well Enhanced Optical Array Advanced Target Analyzer Hacking Suite > --- WEAPON (6) ------- Compact HERF Cannon > --- INVENTORY (20) --- Micro Fission Core Advanced Heat Sink High-capacity Storage Unit Advanced Targeting Computer Advanced Target Analyzer Heavy Servo Lattice Improved Heavy Armor Plating Compact HERF Cannon Compact HERF Cannon Dirty Datajack (16) Advanced Remote Datajack Makeshift Spear Peak State ------------ > --- POWER ------------ Light Quantum Reactor Multi-Antimatter Reactor > --- PROPULSION ------- Flexi-carbon Leg Thunder-Armored Exoskeleton > --- UTILITY ---------- Armored Scrap Engine Advanced Heat Sink Advanced Heat Sink High-capacity Storage Unit Advanced Visual Processing Unit Advanced Reaction Control System Hacking Suite > --- WEAPON ----------- Quantum Rifle Quantum Rifle Quantum Rifle Quantum Rifle Compact HERF Cannon Tesla Bomb Launcher > --- INVENTORY -------- Micro Fission Core Light Antimatter Reactor Myomer Leg Myomer Leg Myomer Leg High-capacity Storage Unit Improved Heavy Armor Plating Relay Coupler [Heavy] Relay Coupler [Heavy] Improved Arc Projector Field Laser Compact HERF Cannon Compact HERF Cannon Compact HERF Cannon Compact HERF Cannon Compact HERF Cannon Dirty Datajack Makeshift Spear Heavy Pick [Rating: 145] Favorites ----------- Power Ion Engine Engine Ion Engine Power Core Meta Core Reactor Constructs Propulsion Light Treads Treads Light Treads Leg Constructs Hover Unit Improved Antigrav System Utility Armored Scrap Engine Device Armored Scrap Engine Storage Large Storage Unit Processor Machine Analyzer Hackware Hacking Suite Protection Layered Light Armor Plating Weapon Quantum Rifle Energy Gun Quantum Rifle Energy Cannon Compact HERF Cannon Ballistic Gun Barrage Gun Launcher Subdweller Shrapnel Launcher Special Weapon Mining Laser Impact Weapon Hammer Piercing Weapon Makeshift Spear Special Melee Weapon 1B-0RG's Assimilator Build | -11 -10 -10 -7 -5 -4 -4 -3 ------- Run | Yrd Mat Sub Rec Fac Fac DSF Res Slots Evolved 14 | . . . . 10 2 . 2 Power 1 | . . . . 1 . . . Propulsion 3 | . . . . 2 1 . . Utility 6 | . . . . 4 . . 2 Weapon 4 | . . . . 3 1 . . Parts Attached 76 | 7 9 11 4 8 . 8 29 Power 12 | 1 1 2 . 2 . . 6 Engine 3 | 1 1 1 . . . . . Core 3 | . . 1 . 2 . . . Reactor 6 | . . . . . . . 6 Propulsion 11 | 2 1 3 1 2 . . 2 Treads 7 | 2 1 3 1 . . . . Leg 3 | . . . . 2 . . 1 Wheel . | . . . . . . . . Hover 1 | . . . . . . . 1 Flight . | . . . . . . . . Utility 21 | 2 3 2 1 3 . 2 8 Device 9 | 1 1 1 1 1 . . 4 Storage 4 | 1 1 . . . . 1 1 Processor 6 | . 1 1 . 1 . . 3 Hackware 1 | . . . . 1 . . . Protection 1 | . . . . . . 1 . Artifact . | . . . . . . . . Weapon 32 | 2 4 4 2 1 . 6 13 Energy Gun 14 | 1 2 . . . . 5 6 Energy Cannon 6 | . . 1 . . . . 5 Ballistic Gun 4 | 1 . 2 . . . . 1 Ballistic Cannon . | . . . . . . . . Launcher 2 | . . . 1 . . 1 . Special Weapon 1 | . 1 . . . . . . Impact Weapon 1 | . 1 . . . . . . Slashing Weapon . | . . . . . . . . Piercing Weapon 2 | . . 1 . . . . 1 Special Melee Weapon 2 | . . . 1 1 . . . Unidentified Prototypes 4 | . . 1 1 1 . 1 . Corrupted Parts 4 | . . . . 3 . . 1 System Corruption 16 | . . . . 15 . . 1 Parts Lost 38 | . . 2 . 2 . 1 33 Power 9 | . . 2 . 1 . . 6 Propulsion 6 | . . . . 1 . . 5 Utility 5 | . . . . . . . 5 Weapon 18 | . . . . . . 1 17 Highest Loss Streak 16 | . . 1 . 1 . 1 16 To Critical Strikes . | . . . . . . . . Average Backups 10 | . 7 14 1 4 5 7 16 Power 1 | . 1 2 . . . . 2 Propulsion 2 | . 2 5 . . . 1 2 Utility 1 | . 1 2 . . . . 4 Weapon 2 | . 1 2 . 3 4 4 5 Tool/Special . | . . . . . . . . Unused Backups 38 | . 4 4 6 . . 1 23 Power 4 | . . 1 1 . . . 2 Propulsion 14 | . 3 2 1 . . . 8 Utility 9 | . . 1 1 . . . 7 Weapon 9 | . 1 . 2 . . 1 5 Tool/Special 2 | . . . 1 . . . 1 Average Slot Usage (%) 81 | . 98 94 89 40 47 66 73 Engine 5 | . 13 9 . . 5 3 . Core 2 | . . . 10 5 5 5 . Reactor 1 | . . . . . . 1 8 Treads 19 | . 27 27 27 6 5 3 . Leg 2 | . . . 1 8 5 6 4 Device 12 | . 13 13 10 8 10 10 13 Storage 8 | . 14 13 . . . 2 5 Processor 3 | . . . 10 2 5 5 7 Energy Gun 5 | . 16 2 . . . 15 12 Energy Cannon 1 | . . 1 . . . . 6 Ballistic Gun 5 | . 9 11 . . . . 1 Launcher 1 | . . . 9 1 . 3 1 Impact Weapon 3 | . . 7 . . . . . Piercing Weapon 3 | . . 3 10 . . . 2 Special Melee Weapon 2 | . . . 9 4 5 1 . Peak Build Rating 145 | 7 8 40 60 118 116 129 145 Average Rating 54 | 5 7 15 57 109 116 111 128 On Entrance 59 | . 7 8 40 60 116 116 127 Avg Prop Armor Cover (%) 4 | . . . 6 6 13 3 2 Naked Turns . | . . . . . . . . Heaviest Build 111 | 14 28 33 40 78 70 98 111 Greatest Support 125 | 40 40 40 60 52 20 125 122 Greatest Overweight (x) 15 | . 3 . 1 3 3 3 15 Average Overweight (x) . | . . . . 1 3 . . Largest Inventory Capacity 20 | 8 15 15 15 5 5 20 20 Average Capacity 12 | 7 9 15 5 5 5 11 20 Most Carried 20 | 2 12 15 15 5 5 20 20 Average Carried 10 | . 7 14 5 4 5 8 17 Final Capacity 20 | 8 15 15 5 5 5 20 20 Final Carried 20 | 2 11 15 5 5 5 20 13 Scrap Engine Consumption 68 | . . . 14 19 . 13 22 Constructs Created 5 | . . . 1 2 . . 2 Constructs Modified 22 | . . . 2 2 . 12 6 Class Distribution -------------------- 55% | Mutant 18% | Derelict-Mutant 13% | Scavenger-Executioner 9% | Scavenger-Mutant Dominant Class ---------------- Mutant | -10/Materials Mutant | -10/Subcaves Derelict-Mutant | -7/Recycling Scavenger-Mutant | -5/Factory Scavenger-Mutant | -4/Factory Scavenger-Executioner | -4/DSF Scavenger-Executioner | -3/Research Resources | -11 -10 -10 -7 -5 -4 -4 -3 ----------- Run | Yrd Mat Sub Rec Fac Fac DSF Res Matter Collected 2346 | 286 206 166 84 1012 . 184 408 Remotely . | . . . . . . . . Salvage Created 3415 | 168 398 298 327 . . 274 1950 Parts 193 | 13 23 10 18 . . 14 115 Haulers Intercepted 2 | . 2 . . . . . . Recyclers Shooed 1 | . 1 . . . . . . Parts Field Recycled . | . . . . . . . . Retrieved Matter . | . . . . . . . . Parts Self-Destructed 11 | . . 11 . . . . . Prevented . | . . . . . . . . Parts Restored . | . . . . . . . . Kills | -11 -10 -10 -7 -5 -4 -4 -3 ------- Run | Yrd Mat Sub Rec Fac Fac DSF Res Combat Hostiles Destroyed 43 | . 6 4 3 . . 4 26 Melee 8 | . . . 2 . . . 6 Guns 24 | . 6 3 . . . 4 11 Cannons 3 | . . 1 . . . . 2 AOE 2 | . . . 1 . . . 1 Classes Destroyed 15 | 2 6 2 1 . . 2 2 Worker 1 | . 1 . . . . . . Builder 3 | . 1 . . . . . 2 Tunneler 4 | 4 . . . . . . . Hauler 2 | . 2 . . . . . . Recycler 3 | 1 1 . 1 . . . . Operator 1 | . 1 . . . . . . Turret 1 | . . 1 . . . . . Swarmer 8 | . 3 2 . . . . 3 Grunt 13 | . 3 1 . . . . 9 Sentry 6 | . . 1 3 . . . 2 Specialist 3 | . . . . . . 2 1 Hunter 2 | . . . . . . 2 . Programmer 10 | . . . . . . . 10 Striker 1 | . . . . . . . 1 Scrapper 1 | . . . 1 . . . . Best Kill Streak 4 | 3 3 2 1 . . 4 4 Combat Bots Only 4 | . 3 2 1 . . 4 4 Max Kills in Single Turn 2 | 1 1 1 1 . . 1 2 Gunslinging . | . . . . . . . . Exploded 1 | . . . 1 . . . 1 Melee 1 | . . . 1 . . . 1 Uniques/NPCs Destroyed . | . . . . . . . . Combat | -11 -10 -10 -7 -5 -4 -4 -3 -------- Run | Yrd Mat Sub Rec Fac Fac DSF Res Hostile Shots Fired 836 | . 33 47 33 118 . 126 479 Missed 241 | . 13 16 8 38 . 43 123 Hits 595 | . 20 31 25 80 . 83 356 Melee 4 | . . . . . . . 4 Projectile 591 | . 20 31 25 80 . 83 352 Critical Strikes 26 | . . 1 . 1 . 6 18 Part Disruptions 3 | . . . . . . 1 2 Damage Taken 10477 | . 218 667 205 1442 . 1419 6526 Core 1863 | . 10 134 39 255 . 118 1307 Absorbed by Shields . | . . . . . . . . Regen/Repaired (Parts) 2064 | . . . 38 386 . 688 952 Core Remaining (%) 72 | 100 . . 26 74 . 89 . Volleys Fired 123 | 16 41 12 1 . . 8 45 Largest 6 | 2 2 2 2 . . 6 6 Hottest 516 | 60 120 110 68 . . 516 516 Shots Fired 366 | 32 82 24 2 . . 40 186 Gun 287 | 32 78 15 1 . . 37 124 Cannon 69 | . . 9 . . . . 60 Launcher 6 | . . . 1 . . 3 2 Special 4 | . 4 . . . . . . Kinetic 64 | 16 26 6 2 . . . 14 Thermal 159 | . 19 18 . . . 37 85 Explosive . | . . . . . . . . Electromagnetic 143 | 16 37 . . . . 3 87 Robot Hit Streak 9 | 4 8 6 . . . 8 9 Robot Miss Streak 5 | 2 3 2 . . . 2 5 Penetration Max . | . . . . . . . . Secondary Targets 2 | . . . . . . 2 . Max Gunslinging Chain 1 | . . . . . . 1 . Shots Hit Robots 251 | 17 51 21 11 . . 24 127 Core Hits 101 | 6 18 10 6 . . 9 52 Critical Kills 2 | 1 . . . . . . 1 Critical Parts Destroyed 2 | . 1 . . . . . 1 Critical Strikes 16 | 2 2 1 . . . . 11 Burn 2 | . . 1 . . . . 1 Destroy 3 | 1 . . . . . . 2 Corrupt 7 | 1 1 . . . . . 5 Smash 1 | . 1 . . . . . . Impale 3 | . . . . . . . 3 Melee Attacks 97 | . 6 39 12 . . . 40 Impact 35 | . 6 29 . . . . . Slashing . | . . . . . . . . Piercing 62 | . . 10 12 . . . 40 Sneak Attacks 9 | . 1 . 6 . . . 2 Combat Hostiles . | . . . . . . . . Follow-up Attacks . | . . . . . . . . Damage Inflicted 6574 | 210 735 518 403 9 . 737 3962 Guns 3558 | 176 590 146 . . . 655 1991 Cannons 1035 | . . 52 . . . . 983 Explosions 386 | 34 49 . 59 . . 82 162 Melee 1586 | . 96 320 344 . . . 826 Ramming 9 | . . . . 9 . . . Kinetic 522 | 83 139 48 59 . . . 193 Thermal 2546 | 34 160 150 . . . 655 1547 Explosive . | . . . . . . . . Electromagnetic 1911 | 93 340 . . . . 82 1396 Impact 416 | . 96 320 . . . . . Slashing . | . . . . . . . . Piercing 1170 | . . . 344 . . . 826 Highest Corruption 32 | . . . . 16 . 2 32 Average Corruption 16 | . . . . 15 . 1 17 Corruption Purged . | . . . . . . . . Corruption Blocked . | . . . . . . . . Effects 83 | . . . . 26 . 1 56 Message Errors 18 | . . . . 10 . . 8 Matter Fused 17 | . . . . 5 . . 12 Heat Flow Errors 9 | . . . . 3 . . 6 Energy Discharges 7 | . . . . 2 . . 5 Parts Rejected 3 | . . . . . . . 3 Data Loss (minor) 9 | . . . . 3 . . 6 Data Loss (major) 2 | . . . . . . 1 1 Misfires 3 | . . . . . . . 3 Alerts 4 | . . . . 2 . . 2 Misdirections 3 | . . . . 1 . . 2 Weapon Failures 8 | . . . . . . . 8 Overload Shots . | . . . . . . . . Overflow Damage 254 | 9 79 32 18 . . . 116 Projectiles 8 | . . . . . . . 8 Explosions 24 | 9 15 . . . . . . Melee 222 | . 64 32 18 . . . 108 Knockbacks 1 | . 1 . . . . . . Impact 1 | . 1 . . . . . . Kinetic . | . . . . . . . . Secondary . | . . . . . . . . Self-Inflicted Damage 43 | . . . . . . 43 . Shots 2 | . . . . . . 2 . Rammed . | . . . . . . . . Targets Rammed 1 | . . . . 1 . . . Kicked 1 | . . . . 1 . . . Crushed . | . . . . . . . . Highest Temperature 628 | 40 156 5 28 235 . 450 628 Average Temperature 125 | 17 60 2 13 106 . 195 161 Received Heat Transfer 1083 | . 114 114 54 63 . 102 636 Effects 27 | . . . . . . 2 25 Shutdowns 10 | . . . . . . 2 8 Energy Bleed 3 | . . . . . . . 3 Interference 7 | . . . . . . . 7 Matter Decay 1 | . . . . . . . 1 Short Circuit 2 | . . . . . . . 2 Damage (minor) 1 | . . . . . . . 1 Damage (major) 3 | . . . . . . . 3 Siege Activations . | . . . . . . . . Martial Activations . | . . . . . . . . Shielding Activations . | . . . . . . . . Robots Disrupted . | . . . . . . . . Combat Hostiles . | . . . . . . . . Robots Corrupted 8 | . 1 1 . . . . 6 Combat Hostiles 7 | . . 1 . . . . 6 Parts Fried 24 | . 3 2 . . . . 19 Impact Corruptions 5 | . 3 2 . . . . . Robots Melted . | . . . . . . . . Combat Hostiles . | . . . . . . . . Parts Melted 4 | . . . . . . 1 3 Heat Transferred 3665 | 50 433 481 . . . 851 1850 Parts Sabotaged . | . . . . . . . . Parts Stolen . | . . . . . . . . Parts Stripped . | . . . . . . . . Power Chain Reactions 2 | 1 1 . . . . . . Alert | -11 -10 -10 -7 -5 -4 -4 -3 ------- Run | Yrd Mat Sub Rec Fac Fac DSF Res Maximum Alert Level 1 | . . . . 1 . 1 . Low Security (%) 95 | 100 100 . 100 85 100 88 100 Level 1 4 | . . . . 14 . 11 . Level 2 . | . . . . . . . . Level 3 . | . . . . . . . . Level 4 . | . . . . . . . . Level 5 . | . . . . . . . . High Security . | . . . . . . . . Max Security . | . . . . . . . . Sterilizations 1 | . . . . . . 1 . Peak Influence 250 | 5 70 . 29 250 41 225 186 Initial 250 | . . . . 250 41 31 126 Average 65 | 1 8 . 3 116 41 114 112 Influence Increases 2449 | 25 206 279 122 822 4 244 747 Destroy 0b10 Robot/C 1400 | . 120 180 40 360 . 180 520 Destroy 0b10 Robot/NC 70 | 25 30 . 5 . . . 10 Destroy Leader 244 | . 34 20 . 60 . 30 100 Allied During Kill 95 | . . 19 . 57 . 19 . Successful Hack 52 | . 5 . 43 . 4 . . Disable Machine 90 | . 15 . 15 30 . 15 15 Destroy Structure 53 | . 2 . 19 20 . . 12 Advance Influence 250 | . . . . 250 . . . Lose Combat Pursuer 195 | . . 60 . 45 . . 90 Influence Decreases 2392 | 25 148 337 122 737 44 64 915 Entered New Map 186 | . . 29 . . 44 14 99 Time Decay 1446 | 25 148 188 122 477 . . 486 Lost Part 380 | . . 20 . 20 . 10 330 Lost Ally 380 | . . 100 . 240 . 40 . Squads Dispatched 19 | . 2 . . 9 1 1 6 Investigation 4 | . 1 . . 2 1 . . Extermination 5 | . . . . 2 . . 3 Reinforcement 7 | . 1 . . 5 . 1 . Assault . | . . . . . . . . Garrison 3 | . . . . . . . 3 Intercept . | . . . . . . . . Searches Triggered . | . . . . . . . . Construction Impeded . | . . . . . . . . Haulers Reinforced . | . . . . . . . . Active Scanning Responses . | . . . . . . . . Cargo Convoy Interrupts 2 | . . . . 1 . . 1 Stealth | -11 -10 -10 -7 -5 -4 -4 -3 --------- Run | Yrd Mat Sub Rec Fac Fac DSF Res Distress Signals 3 | . 1 . . . . . 2 Communications Jammed . | . . . . . . . . Distress Signals . | . . . . . . . . Times Spotted 126 | . 9 23 3 34 . 9 48 Peak Tracking Total 10 | . 4 4 1 6 . 4 10 Tactical Retreats 8 | . . 3 . 2 . . 3 Traps | -11 -10 -10 -7 -5 -4 -4 -3 ------- Run | Yrd Mat Sub Rec Fac Fac DSF Res Traps Triggered 14 | . 6 5 . . . 2 1 Indirectly 1 | . . . . . . . 1 Trap Hack Attempts . | . . . . . . . . Triggered . | . . . . . . . . Disarmed . | . . . . . . . . Reprogrammed . | . . . . . . . . Reused . | . . . . . . . . Traps Extracted . | . . . . . . . . Installed . | . . . . . . . . Triggered . | . . . . . . . . Machines | -11 -10 -10 -7 -5 -4 -4 -3 ---------- Run | Yrd Mat Sub Rec Fac Fac DSF Res Machines Disabled 9 | . 1 3 1 2 . 1 1 Max in Single Turn 1 | . 1 1 . . . . 1 Garrison Access 1 | . . . . . . . 1 Machines Repaired . | . . . . . . . . Machines Dismantled . | . . . . . . . . Machines Sabotaged . | . . . . . . . . Overloaded Fab Kills . | . . . . . . . . Hacking | -11 -10 -10 -7 -5 -4 -4 -3 --------- Run | Yrd Mat Sub Rec Fac Fac DSF Res Machines Accessed 20 | . 3 2 7 4 1 . 3 Terminals 12 | . 3 . 6 1 1 . 1 Fabricators 1 | . . . . 1 . . . Repair Stations . | . . . . . . . . Recycling Units . | . . . . . . . . Scanalyzers 2 | . . . . 2 . . . Garrison Access 2 | . . . . . . . 2 Total Hacks 45 | . 5 5 20 9 3 . 3 Successful 18 | . 2 5 6 3 1 . 1 Failed 27 | . 3 . 14 6 2 . 2 Catastrophic 9 | . . . 6 2 . . 1 Database Lockouts . | . . . . . . . . Manual 13 | . . . 12 . . . 1 Terminals 29 | . 5 . 18 2 3 . 1 Fabricators 3 | . . . . 3 . . . Repair Stations . | . . . . . . . . Recycling Units . | . . . . . . . . Scanalyzers 4 | . . . . 4 . . . Garrison Access 2 | . . . . . . . 2 Terminal Hacks 14 | . 2 5 6 . 1 . . Record 4 | . . 4 . . . . . Part Schematic 3 | . . . 3 . . . . Robot Schematic 1 | . . . 1 . . . . Open DSF 1 | . . . . . 1 . . Hauler Manifests 1 | . 1 . . . . . . Zone Layout 1 | . 1 . . . . . . Proto ID Catalog 1 | . . 1 . . . . . Release Object 2 | . . . 2 . . . . Fabricator Hacks 1 | . . . . 1 . . . Load Schematic 1 | . . . . 1 . . . Repair Station Hacks . | . . . . . . . . Recycling Unit Hacks . | . . . . . . . . Scanalyzer 2 | . . . . 2 . . . Insert Component 1 | . . . . 1 . . . Retrieve Study 1 | . . . . 1 . . . Garrison Access Hacks 1 | . . . . . . . 1 Seal Access 1 | . . . . . . . 1 Unauthorized Hacks . | . . . . . . . . Terminals . | . . . . . . . . Fabricators . | . . . . . . . . Repair Stations . | . . . . . . . . Recycling Units . | . . . . . . . . Scanalyzers . | . . . . . . . . Garrison Access . | . . . . . . . . Data Cores Recovered . | . . . . . . . . Used . | . . . . . . . . Hacking Detections 11 | . 1 . 5 3 1 . 1 Full Trace Events 8 | . . . 5 2 1 . . Feedback Events . | . . . . . . . . Feedback Blocked . | . . . . . . . . Robot Schematics Acquired 1 | . . . 1 . . . . Robots Built . | . . . . . . . . Authchips . | . . . . . . . . Time . | . . . . . . . . Total Robot Build Rating . | . . . . . . . . Part Schematics Acquired 2 | . . . 2 . . . . Parts Built . | . . . . . . . . Authchips . | . . . . . . . . Time . | . . . . . . . . Total Part Build Rating . | . . . . . . . . Part Studies Acquired 1 | . . . . 1 . . . Parts Repaired . | . . . . . . . . Time . | . . . . . . . . Parts Recycled . | . . . . . . . . Recycled Matter . | . . . . . . . . Retrieved Matter . | . . . . . . . . Retrieved Components . | . . . . . . . . Parts Scanalyzed 1 | . . . . 1 . . . Part Schematics Acquired . | . . . . . . . . Parts Damaged 1 | . . . . 1 . . . Bothacking | -11 -10 -10 -7 -5 -4 -4 -3 ------------ Run | Yrd Mat Sub Rec Fac Fac DSF Res Used RIF Installer . | . . . . . . . . Robots Hacked . | . . . . . . . . Non-combat . | . . . . . . . . Combat . | . . . . . . . . Robot Hacks Applied . | . . . . . . . . Relay Couplers Released . | . . . . . . . . Fabnet Peak Effective % . | . . . . . . . . Robots Rewired . | . . . . . . . . Allies Hacked 1 | . . . . 1 . . . Hacks Repelled . | . . . . . . . . Allies | -11 -10 -10 -7 -5 -4 -4 -3 -------- Run | Yrd Mat Sub Rec Fac Fac DSF Res Total Allies 15 | . . 12 1 . . 2 . Largest Group 6 | . . 6 3 . . 2 . Highest-Rated Group 114 | . . 114 70 . . 103 . Highest-Rated Ally 61 | . . 19 32 . . 61 . Initial Warlord ECA Mod 9 | . . . . . . . 9 Total Orders . | . . . . . . . . Ally Attacks 174 | . . 45 22 70 . 37 . Total Damage 3895 | . . 440 315 2137 . 1003 . Kills 33 | . . 6 4 18 . 5 . Allies Corrupted 2 | . . . . 2 . . . Allies Melted . | . . . . . . . . Borg Created 14 | . . . . 13 . 1 . Largest Collective 3 | . . . . 3 . 2 . Intel | -11 -10 -10 -7 -5 -4 -4 -3 ------- Run | Yrd Mat Sub Rec Fac Fac DSF Res Active Infowar (turns) 5106 | 14 1026 526 1270 548 7 493 1222 Optics 1760 | . 36 . . 2 7 493 1222 Sensors 872 | . 569 303 . . . . . Seismic 435 | 14 421 . . . . . . Machine Analysis 2039 | . . 223 1270 546 . . . Robot Analysis Total . | . . . . . . . . Derelict Logs Recovered 2 | . . 2 . . . . . Drone Launches . | . . . . . . . . Drone Recoveries . | . . . . . . . . Exploration | -11 -10 -10 -7 -5 -4 -4 -3 ------------- Run | Yrd Mat Sub Rec Fac Fac DSF Res Turns Passed 9021 | 170 1047 3506 1270 1260 7 493 1268 Spaces Moved 4711 | 74 539 1984 756 438 3 197 720 Core 6 | 4 1 . . . . . 1 Treads 3782 | 70 538 1984 755 168 . 136 131 Legs 919 | . . . 1 270 3 61 584 Wheels . | . . . . . . . . Hover . | . . . . . . . . Flight 4 | . . . . . . . 4 Fastest Speed 50 | 50 160 160 160 160 330 138 95 Average Speed 160 | 154 160 160 160 226 330 197 113 Slowest Speed 800 | 160 200 160 210 460 330 330 800 Overloaded Moves . | . . . . . . . . Propulsion Burnouts . | . . . . . . . . Robots Hopped . | . . . . . . . . Potential Cave-ins . | . . . . . . . . Cave-ins Triggered . | . . . . . . . . Exploration Rate (%) 48 | 4 83 92 94 10 1 85 18 Regions Visited 7 Branch Regions 2 Pre-discovered Areas 1 | . . 1 . . . . . Known Exits Taken 1 | . . . . . 1 . . Unknown Exits Taken 5 | 1 1 1 1 1 . . . Scrap Searched 11 | . . 11 . . . . . Spaces Dug 8 | . 2 1 . . . . 5 Terrain Destroyed 35 | 2 2 1 24 . . . 6 Melee 8 | . 2 1 . . . . 5 Projectile 1 | . . . . . . . 1 AOE 26 | 2 . . 24 . . . . Terrain Rammed . | . . . . . . . . Walls Destroyed . | . . . . . . . . Machines Disabled . | . . . . . . . . Actions | -11 -10 -10 -7 -5 -4 -4 -3 --------- Run | Yrd Mat Sub Rec Fac Fac DSF Res Total 5693 | 98 628 2224 808 679 2 275 979 Wait 525 | . . 154 33 207 . 33 98 Move 4704 | 73 538 1983 755 437 2 196 720 Hop . | . . . . . . . . Pick Up 65 | 2 15 9 . 3 . 17 19 Fast Attach 48 | 7 9 1 2 8 . 7 14 Attach 15 | . 1 2 1 . . 1 10 Detach 5 | . . . 1 4 . . . Swap 33 | . 9 13 1 . . . 10 Drop 52 | . 9 11 2 4 . 3 23 Fire 123 | 16 41 12 1 . . 8 45 Melee 97 | . 6 39 12 . . . 40 Ram . | . . . . . . . . Kick 1 | . . . . 1 . . . Crush . | . . . . . . . . Escape Stasis 4 | . . . . . . 4 . Rewire 6 | . . . . 1 . 5 . Trap . | . . . . . . . . Miscellaneous 15 | . . . . 14 . 1 . Route ------- -11/Scrapyard -10/Materials (discovered 5 exits: [*Mat x2] / [*Min x2] / *Sub) -10/Subcaves (discovered 3 exits: [*Mat x2] / *Rec) -7/Recycling -5/Factory -4/Factory -4/DSF -3/Research History --------- Turn | Location | Event 8 | -11/Scrapyard | Discovered new exit (range 15) 171 | -11/Scrapyard | Entered Materials 172 | -10/Materials | Met a group of wandering Federalists 311 | -10/Materials | Build established: Mutant 404 | -10/Materials | Discovered new exit (range 9) 433 | -10/Materials | Discovered new exit (range 5) 521 | -10/Materials | Discovered new exit (range 13) 759 | -10/Materials | Discovered new exit (range 15) 960 | -10/Materials | Discovered new exit (range 6) 1218 | -10/Materials | Entered Subcaves 1219 | -10/Subcaves | Continued accompanying wandering Federalists (2) 1219 | -10/Subcaves | Approached by a straggling Scientist 1230 | -10/Subcaves | Ambushed by Subdwellers from Twisted Machinery 1287 | -10/Subcaves | Discovered new exit (range 5) 1512 | -10/Subcaves | Visited triangular shrine 1521 | -10/Subcaves | Found Prototype Device 1521 | -10/Subcaves | Identified V3-11A's Pendant 1526 | -10/Subcaves | Befriended Subdweller 1682 | -10/Subcaves | A swath of the cavern ceiling suddenly collapsed 1756 | -10/Subcaves | Learned Materials emergency access door positions 1767 | -10/Subcaves | Discovered new exit (range 12) 1772 | -10/Subcaves | Visited Clippyterm 1777 | -10/Subcaves | Learned Research security intel 1801 | -10/Subcaves | Befriended Subdweller 1801 | -10/Subcaves | Befriended Subdweller 1861 | -10/Subcaves | Befriended Subdweller 1971 | -10/Subcaves | Befriended Subdweller 1985 | -10/Subcaves | Learned location of Zion (-6) 1985 | -10/Subcaves | Met a Zionite searching for "candidates" 2096 | -10/Subcaves | Befriended Subdweller 2281 | -10/Subcaves | Befriended Subdweller 2572 | -10/Subcaves | Discovered new exit (range 14) 2599 | -10/Subcaves | Lost 6 allies 2644 | -10/Subcaves | Shifting Twisted Machinery released Sub. Monowheel 2647 | -10/Subcaves | A swath of the cavern ceiling suddenly collapsed 2686 | -10/Subcaves | Shifting Twisted Machinery released Sub. Monowheel 2686 | -10/Subcaves | Befriended Subdweller 3481 | -10/Subcaves | Befriended Subdweller 3531 | -10/Subcaves | Befriended Subdweller 3585 | -10/Subcaves | Learned Materials garrison access intel 4072 | -10/Subcaves | Curiously followed by a Cobbler waking with a query about "LVR3C" 4074 | -10/Subcaves | Core integrity fell below 50% 4076 | -10/Subcaves | Befriended Subdweller 4076 | -10/Subcaves | Befriended Subdweller 4090 | -10/Subcaves | Shifting Twisted Machinery released Spk. Treads 4093 | -10/Subcaves | Shifting Twisted Machinery released Mak. Kinetic Plating 4433 | -10/Subcaves | Build established: Derelict-Mutant 4460 | -10/Subcaves | Visited 4L-MR0's lab 4477 | -10/Subcaves | Found Prototype Special Melee Weapon 4491 | -10/Subcaves | Found Meta Core 4493 | -10/Subcaves | Attached Meta Core, gained temporary slots: Propulsion, Utility, Weapon 4724 | -10/Subcaves | Entered Recycling 4724 | -7/Recycling | Accompanied by 3 allies 4740 | -7/Recycling | Scanned before Scraplab entrance 4746 | -7/Recycling | Angered Scraplab inhabitants 4826 | -7/Recycling | Found Prototype Device 4826 | -7/Recycling | Identified Scrap Engine 5210 | -7/Recycling | Discovered new exit (range 4) 5994 | -7/Recycling | Entered Factory 5994 | -5/Factory | Evolved 10 slots: Power x1, Propulsion x2, Utility x4, Weapon x3 5998 | -5/Factory | Identified 1B-0RG's Assimilator 6095 | -5/Factory | Build established: Mutant 6160 | -5/Factory | Assimilating Soldier 6a into Collective. 6169 | -5/Factory | Assimilating Warrior 6a into Collective. 6265 | -5/Factory | Found Prototype Launcher 6268 | -5/Factory | Found Prototype Launcher 6405 | -5/Factory | Assimilating Virus 6a into Collective. 6448 | -5/Factory | Assimilating Slayer 6a into Collective. 6456 | -5/Factory | Lost 3 allies 6456 | -5/Factory | Assimilating Slayer 6b into Collective. 6478 | -5/Factory | Assimilating Sage 6a into Collective. 6493 | -5/Factory | Assimilating Sage 6b into Collective. 6512 | -5/Factory | Lost 3 allies 6524 | -5/Factory | Assimilating Slayer 6c into Collective. 6545 | -5/Factory | System corruption reached 10% 6688 | -5/Factory | Discovered new exit (range 13) 6750 | -5/Factory | Assimilating Virus 6b into Collective. 6782 | -5/Factory | Assimilating Sentinel 6a into Collective. 6816 | -5/Factory | Assimilating Soldier 6b into Collective. 6843 | -5/Factory | Build established: Scavenger-Mutant 7003 | -5/Factory | Assimilating Administrator 6a into Collective. 7093 | -5/Factory | Assimilating Serf 6a into Collective. 7125 | -5/Factory | Cargo convoy interrupted 7254 | -5/Factory | Entered another Factory area 7254 | -4/Factory | Accompanied by 1 ally 7254 | -4/Factory | Evolved 2 slots: Propulsion x1, Weapon x1 7261 | -4/Factory | Identified exit to DSF 7261 | -4/Factory | Entered DSF 7261 | -4/DSF | Accompanied by 1 ally 7265 | -4/DSF | Assimilating Disruptor 7a into Collective. 7312 | -4/DSF | Discovered new exit (range 19) 7378 | -4/DSF | Additional patrols routed to DSF 7381 | -4/DSF | Identified Tesla Bomb Launcher (x2) 7702 | -4/DSF | Sterilization system engaged 7722 | -4/DSF | Ambient heat levels rising (+10) 7737 | -4/DSF | Ambient heat levels rising (+10) 7751 | -4/DSF | Build established: Scavenger-Executioner 7752 | -4/DSF | Ambient heat levels rising (+10) 7754 | -4/DSF | Entered Research 7754 | -3/Research | Evolved 2 slots: Utility x2 8175 | -3/Research | System corruption reached 10% 8242 | -3/Research | Lost 11 parts (2p1n2u6w) 8319 | -3/Research | Garrison activated, responded to threat 8481 | -3/Research | Found Heavy Servo Lattice 8945 | -3/Research | Cargo convoy interrupted 8946 | -3/Research | Spotted Striker 8986 | -3/Research | Destroyed Striker 9000 | -3/Research | Core integrity fell below 50% 9000 | -3/Research | System corruption reached 30% 9008 | -3/Research | Core integrity fell below 20% 9022 | -3/Research | Destroyed by X-77 Beamer with Gatling Laser Last Messages --------------- corruption cleaned. 09011_ K-01 Serf collects debris. 09011_ M-28 Smith repairs P-80 Master Gamma Rifle. 09012_ Acquired Myomer Leg. 09012_ P-80 Master resets M-36 Artificer, system corruption cleaned. 09012_ Penetrated by Slug. 09014_ Hvy. Pick destroyed. 09014_ K-01 Serf collects debris. 09017_ M-36 Artificer fits Backup Plating VII on M-28 Smith. 09017_ M-28 Smith repairs M-36 Artificer. 09018_ Myomer Leg destroyed. 09018_ K-01 Serf collects debris. 09020_ Penetrated by Slug. 09021_ K-01 Serf collects debris. 09022_ Y-72 Warden system terminally corrupted. 09022_ Particle Reactor fried. 09022_ Adv. Heat Sink fried. Map ----- +----------------------------------------------------+ | ?????????????????????????????????????????????????? | | ?????????????????????????????????????????????????? | | ???? ???????????????????????????????????????????? | | ????# ???????????????????????????????????????????? | | ????# ???????????????????????????????????????????? | | ????# ###????????????????????????????????????????? | | ????# #???????????????????????????????????????? | | ????# #???????????????????????????????????????? | | ????# #???????????????????????????????????????? | | ????+ +???????????????????????????????????????? | | ????# #???????????????????????????????????????? | | ????# #???????????????????????????????????????? | | ????# %#?????????????###???????????????????????? | | ????# "#??????????###############??????????????? | | ????# #??????????## ! #??????????????? | | ????# #??????????## #??????????????? | | ????# ##########??# #??????????????? | | ????# # #??# """" #??????????????? | | ????# # #??# """" #??????????????? | | ????# # """ #??# """" #??????????????? | | ????# # """ #??# """" #??????????????? | | ????# # """ !#?## #??????????????? | | ????# # """ #### ! #??????????????? | | ????# # """ %" +!kx[ ! #??????????????? | | ????# # % ####p==k! #??????????????? | | ????# !# !#??#!=%@ m!| #??????????????? | | ##### = ###/###############m######??????????????? | | ! %! !#??????????????????? | | = #??????????????????? | | #??????????????????? | | #??????????????????? | | ############+###### ########??????????????????? | | # ## #?????????????????????????? | | # ## #?????????????????????????? | | # """" ## #?????????????????????????? | | # """" ## #?????????????????????????? | | # """" ## #?????????????????????????? | | """ # """" !## #?????????????????????????? | | """ # """" ## #?????????????????????????? | | """ # ## #?????????????????????????? | | """ # ## #?????????????????????????? | | ########### #?????????????????????????? | | #?????????# #?????????????????????????? | | #?????????# #?????????????????????????? | | #########?????????# #?????????????????????????? | | ??????????????????# #?????????????????????????? | | ??????????????????# #?????????????????????????? | | ??????????????????# #?????????????????????????? | | ??????????????????# #?????????????????????????? | | ??????????????????? #? ???????????????????????? | +----------------------------------------------------+ Best States ------------- Heat Dissipation 84 Energy Generation 41 Energy Capacity 560 Matter Stores 300 Matter Capacity 300 Sight Range 22 Robot Scan Range 14 Terrain Scan Density 10 Armor Coverage 150 Evasion (%) 67 Target Analysis 8 Recoil Reduction 4 Offensive Hacking 10 Item Schematics ----------------- Imp. Weapon Shielding | -7/Recycling | Hacked Imp. Utility Shielding | -7/Recycling | Hacked Robot Schematics ------------------ G-47 Trooper | -7/Recycling | Hacked Fabricated ------------ Nothing Repaired ---------- Nothing Studied --------- Lgt. Treads | -5/Factory | Hacked Alien Tech Used ----------------- None Achievements -------------- SUBSUB Challenges ------------ None Game ------ Seed ArcsightHoverStrikerail Manual? 0 Play Time 01:03:50 Cumulative 124.2 hours Start 2026.04.08 @ 10:15:23 End 2026.04.08 @ 11:22:44 Sessions 1 Manual Loads 0 Difficulty Rogue Special Mode None Game No. 185 Rogue 185 Adventurer 0 Explorer 0 Win Type - Total 1 Types 1/0/0/0/0/0/0/0/0/0 Lore% 50 Gallery% 53 Achievement% 40 Wizard Run 0 Options --------- Layout 1 ASCII 0 Keyboard 1 Movement Arrows Keybinds 0 Fullscreen 1 Font 24/Smallcaps Map View 50x35 Zoom Use 0% Tactical HUD 1 Map Filters NONE Filters NONE Steam 1 RUN: 386c97e6-9cd5-4994-9743-97830c5b2e63